bitfinex-derivatives/quotes_ETHF0:USTF0_20251024
["timestamp","ask_amount","ask_price","bid_price","bid_amount"]
[1761299560086,0.7587,3963.8,3963.7,4.11839]
[1761299560387,0.7587,3963.8,3963.7,0.91059]
[1761299561087,0.7587,3963.8,3963.7,0.91278989]
[1761299564688,0.7587,3963.8,3963.7,0.68098989]
[1761299564989,0.7587,3963.8,3963.7,0.45618989]
[1761299565589,0.7587,3963.8,3963.7,0.68098989]
[1761299566703,0.7587,3963.8,3963.7,0.00219989]
[1761299567182,0.7587,3963.8,3963.7,0.45619989]
[1761299567384,0.7587,3963.8,3963.7,0.00219989]
[1761299571588,0.8902,3963.0,3962.9,3.66189]
[1761299572694,0.8902,3963.0,3962.9,3.66385599]
[1761299572695,0.89324214,3963.0,3962.9,3.66385599]
[1761299573496,0.89324214,3963.0,3962.9,0.45605599]
[1761299576089,0.31994214,3963.0,3962.9,1.24315599]
[1761299576397,0.89324214,3963.0,3962.9,0.91265599]
[1761299576988,0.89324214,3963.0,3962.9,0.68085599]
[1761299581294,0.89324214,3963.0,3962.9,0.45605599]
[1761299581891,0.4476,3962.2,3962.1,3.2078]
[1761299582094,0.569,3961.9,3961.8,0.45421]
[1761299582397,0.7933,3961.9,3961.8,0.91301]
[1761299582993,0.7933,3961.9,3961.8,0.91589555]
[1761299584396,4.0011,3961.9,3961.8,0.00288555]
[1761299587299,4.0011,3961.9,3961.8,0.68710555]
[1761299587698,4.0011,3961.9,3961.8,0.23288555]
[1761299588799,3.6554,3962.3,3962.2,1.26358]
[1761299589094,3.6554,3962.3,3962.0,0.68419]
[1761299589300,0.7933,3962.1,3962.0,0.68419]
[1761299590502,0.7933,3962.1,3962.0,0.45419]
[1761299590803,0.7933,3961.9,3961.8,0.00288555]
[1761299591598,0.3457,3961.8,3961.0,0.45431]
[1761299591795,0.9233,3961.0,3960.9,0.68432]
[1761299592699,0.9233,3961.0,3960.9,0.6864466]
[1761299592893,0.9233,3961.0,3960.9,0.2321266]
[1761299594305,0.9233,3961.0,3960.9,0.0021266]
[1761299596613,1.0223403,3961.0,3960.9,0.0021266]
[1761299599704,1.0223403,3961.0,3960.1,3.5584]
[1761299600006,0.3457,3960.4,3960.3,0.68319]
[1761299600203,3.4311,3960.7,3960.6,0.91315]
[1761299600403,3.53014362,3960.7,3960.6,0.91315]
[1761299600608,3.30684362,3960.7,3960.6,1.26375]
[1761299600805,3.30684362,3960.7,3960.6,1.26561715]
[1761299601208,0.66804362,3960.7,3960.6,1.26561715]
[1761299601410,0.7933,3960.7,3960.6,1.26561715]
[1761299601610,0.7933,3960.7,3960.6,0.46066715]
[1761299601812,0.89241376,3960.7,3960.6,0.23186715]
[1761299603108,0.89241376,3960.7,3960.6,0.68621715]
[1761299604410,0.89241376,3960.7,3960.6,0.91501715]
[1761299604712,0.569,3960.7,3960.6,1.26561715]
[1761299605316,0.3457,3960.9,3960.8,1.26373]
[1761299605718,0.569,3960.9,3960.8,1.26373]
[1761299606222,0.7933,3960.9,3960.8,1.26373]
[1761299606421,0.7933,3960.9,3960.8,0.91313]
[1761299606722,0.7933,3960.9,3960.8,0.23]
[1761299607632,0.7933,3960.9,3960.8,0.4588]
[1761299607832,0.7933,3960.9,3960.8,0.8094]
[1761299608131,0.7933,3960.9,3960.8,0.4588]
[1761299608331,0.4267,3960.7,3960.6,0.00186715]
[1761299608525,0.4267,3960.7,3960.6,0.22246715]
[1761299608526,0.7706,3960.7,3960.6,0.22246715]
[1761299609124,0.7706,3960.7,3960.6,0.67681715]
[1761299609331,0.7706,3960.7,3960.6,0.89581715]
[1761299609731,0.5568,3961.1,3961.0,0.764]
[1761299610133,0.785,3961.1,3961.0,0.764]
[1761299610333,0.785,3961.1,3961.0,0.4421]
[1761299612435,0.4582,3961.0,3960.8,0.2231]
[1761299612731,0.785,3960.9,3960.8,0.2231]
[1761299613133,0.5568,3961.1,3961.0,0.764]
[1761299613334,0.785,3961.1,3961.0,0.764]
[1761299613539,0.785,3961.1,3961.0,0.89641]
[1761299614038,0.785,3961.1,3961.0,0.67741]
[1761299614226,0.785,3961.1,3961.0,0.2231]
[1761299614635,0.785,3961.1,3960.8,0.45432]
[1761299614636,0.785,3960.9,3960.8,0.2231]
[1761299614939,0.785,3960.7,3960.6,0.00186715]
[1761299615436,0.88455256,3960.7,3960.6,0.00186715]
[1761299616439,0.88457567,3960.7,3960.6,0.00186715]
[1761299622930,1.78853365,3960.7,3960.6,0.00186715]
[1761299624936,0.785,3959.8,3959.7,1.5771499]
[1761299625144,0.88457567,3959.8,3959.7,1.4445999]
[1761299625338,0.88457567,3959.8,3959.7,0.89655]
[1761299625935,0.88779616,3959.8,3959.7,0.89946325]
[1761299626738,0.88779616,3959.8,3959.7,0.00291325]
[1761299628737,0.88779616,3959.8,3959.7,0.22601325]
[1761299629238,0.88779616,3959.8,3959.7,0.00291325]
[1761299633952,0.785,3959.2,3959.1,0.67762]
[1761299634141,0.785,3959.2,3959.1,1.21852]
[1761299634345,0.5568,3959.2,3959.1,1.21852]
[1761299634941,0.5568,3959.2,3959.1,1.22082172]
[1761299635250,0.785,3959.2,3959.1,0.89892172]
[1761299635844,0.785,3959.2,3959.1,1.22082172]
[1761299637350,0.331,3959.2,3959.1,1.22082172]
[1761299637952,0.5568,3959.2,3959.1,1.22082172]
[1761299638151,0.785,3959.2,3959.1,1.22082172]
[1761299638553,0.331,3959.2,3959.1,1.22082172]
[1761299639053,0.5568,3959.2,3959.1,1.22082172]
[1761299641749,0.331,3959.2,3959.1,1.22082172]
[1761299642758,0.5526,3959.2,3959.1,1.22082172]
[1761299643053,0.1272,3959.5,3959.1,1.22082172]
[1761299643054,0.3488,3959.5,3959.4,0.45449]
[1761299643357,0.68170006,3959.5,3959.4,1.25979]
[1761299643558,0.68170006,3959.5,3959.4,0.90889]
[1761299643857,1.00820006,3959.5,3959.4,0.90889]
[1761299645155,0.64740006,3959.5,3959.4,1.25979]
[1761299645357,1.01910006,3959.5,3959.4,1.25979]
[1761299645557,1.01910006,3959.5,3959.4,0.90889]
[1761299648361,0.09930006,3959.5,3959.4,1.25979]
[1761299648555,0.00322049,3959.8,3959.7,1.25975]
[1761299648763,0.00322049,3959.8,3959.4,0.8053]
[1761299648764,0.6862,3959.5,3959.4,0.8053]
[1761299648963,0.9198,3959.5,3959.4,0.90889]
[1761299649256,4.22726635,3959.5,3959.1,0.00230172]
[1761299649450,0.7817,3959.2,3959.1,0.45670172]
[1761299649654,0.88136635,3959.2,3959.1,0.80760172]
[1761299649851,0.88136635,3959.2,3959.1,0.45670172]
[1761299651355,0.88136635,3959.2,3959.1,0.23190172]
[1761299653760,0.88136635,3959.2,3959.1,0.00230172]
[1761299653961,1.78623411,3959.2,3959.1,0.00230172]
[1761299655860,0.7817,3958.4,3958.3,0.6805999]
[1761299656160,0.5481,3957.9,3957.8,0.70586646]
[1761299656368,0.88136635,3957.9,3957.8,0.02526656]
[1761299656867,0.88136635,3957.9,3957.8,0.02739649]
[1761299657166,0.88128432,3957.9,3957.8,0.02739649]
[1761299657367,0.7817,3957.9,3957.8,0.02739649]
[1761299657568,0.88122022,3957.9,3957.8,0.02739649]
[1761299657763,1.78770865,3957.9,3957.8,0.02739649]
[1761299658356,0.88122022,3957.9,3957.8,0.02739649]
[1761299661678,0.88122022,3957.9,3957.8,0.48179649]
[1761299662377,0.7817,3957.9,3957.8,0.83269649]
[1761299663377,3.5343,3958.2,3958.1,0.8053]
[1761299663584,3.7559,3958.2,3958.1,0.8053]
[1761299663779,3.7559,3958.2,3958.1,1.25993]
[1761299664577,3.9895,3958.2,3958.1,1.25993]
[1761299664772,3.9895,3958.2,3958.1,0.90903]
[1761299665569,3.9895,3958.2,3958.1,1.25993]
[1761299665774,0.7817,3958.2,3958.1,1.25993]
[1761299666881,0.5481,3958.2,3958.1,1.25993]
[1761299667173,0.5481,3958.2,3958.1,1.25994]
[1761299667478,0.7817,3958.2,3958.1,1.25994]
[1761299668178,0.7817,3958.2,3958.1,0.90904]
[1761299668477,0.7817,3958.2,3958.1,0.2296]
[1761299668667,0.7793,3957.9,3957.8,0.70556649]
[1761299669870,0.7793,3957.9,3957.8,0.92866649]
[1761299671770,0.7793,3957.9,3957.8,1.27386649]
[1761299675268,0.7763,3958.3,3958.2,0.89201]
[1761299675471,0.87567513,3958.3,3958.2,0.89201]
[1761299676182,1.33028513,3958.3,3958.2,0.89201]
[1761299676878,1.33028513,3958.3,3958.2,1.23721]
[1761299677276,0.7763,3958.3,3958.2,1.23721]
[1761299679880,1.23091,3958.3,3958.2,1.23721]
[1761299680286,1.33038111,3958.3,3958.2,1.23721]
[1761299681587,0.1381,3959.0,3958.3,0.3452]
[1761299681588,0.4633,3959.0,3958.3,0.3452]
[1761299681786,0.4633,3959.0,3958.9,1.23714]
[1761299681787,0.6931,3959.0,3958.9,1.23714]
[1761299681981,0.9144,3959.0,3958.9,1.23714]
[1761299683182,0.3252,3959.0,3958.9,1.23714]
[1761299683583,0.555,3959.0,3958.9,1.23714]
[1761299683886,0.693,3959.0,3958.9,1.23714]
[1761299685586,0.693,3959.0,3958.6,1.8170399]
[1761299685587,0.7763,3958.7,3958.6,0.7826]
[1761299685781,0.7763,3958.7,3958.6,1.23718]
[1761299686097,0.7763,3958.7,3958.6,0.89198]
[1761299686487,0.7763,3958.7,3958.6,1.23718]
[1761299693100,0.555,3958.7,3958.6,1.23718]
[1761299694097,0.3252,3958.7,3958.6,1.23718]
[1761299694398,0.3678,3959.0,3958.9,1.23714]
[1761299694596,0.46880065,3959.0,3958.9,1.23714]
[1761299694792,0.90566,3958.8,3958.7,0.45455]
[1761299694999,1.33186065,3958.8,3958.7,0.67485]
[1761299696791,1.23086,3958.8,3958.7,0.67485]
[1761299697202,1.23086,3958.8,3958.7,0.45455]
[1761299697993,0.138,3959.0,3958.4,0.6805999]
[1761299697994,0.5891,3958.5,3958.4,0.6805999]
[1761299698193,1.04369,3958.5,3958.4,0.4546]
[1761299698701,1.36889,3958.5,3958.4,0.4546]
[1761299699500,1.46988451,3958.5,3958.4,0.4546]
[1761299700998,0.45462,3958.3,3958.2,0.45461]
[1761299701203,1.22782,3958.3,3958.2,0.45461]
[1761299701395,0.7732,3958.2,3958.1,0.67293]
[1761299701596,0.3425,3958.2,3958.1,1.23643]
[1761299702603,0.5609,3958.2,3958.1,1.23643]
[1761299703104,0.7732,3958.2,3958.1,1.23643]
[1761299703402,0.7732,3958.2,3958.1,1.5786299]
[1761299703788,0.7732,3958.2,3958.1,1.9170299]
[1761299704197,0.3425,3958.2,3958.1,1.9170299]
[1761299705995,0.3425,3958.2,3958.1,10.8500299]
[1761299707303,0.6619745,3958.2,3958.1,1.9170299]
[1761299707491,0.6619745,3958.2,3958.1,10.8490299]
[1761299710306,0.6619745,3958.2,3958.1,10.16843]
[1761299711000,0.8742745,3958.2,3958.1,9.83003]
[1761299711306,1.3288945,3958.2,3958.1,9.83003]
[1761299711509,1.3288945,3958.2,3958.1,10.5110482]
[1761299712003,0.8742745,3958.2,3958.1,10.5110482]
[1761299712505,0.8742745,3958.2,3958.1,10.5080482]
[1761299713799,0.8742745,3958.2,3958.1,10.5070482]
[1761299714000,0.8742745,3958.2,3958.1,10.8454482]
[1761299715006,0.8742745,3958.2,3958.1,10.5070482]
[1761299715207,0.8742745,3958.2,3958.1,10.8454482]
[1761299716505,1.3288945,3958.2,3958.1,10.5070482]
[1761299717012,0.8742745,3958.2,3958.1,10.5070482]
[1761299717212,1.3288945,3958.2,3958.1,10.5070482]
[1761299718512,1.3288945,3958.2,3958.1,1.5790482]
[1761299718813,1.3288945,3958.2,3958.1,10.5040482]
[1761299719213,1.3288945,3958.2,3958.1,10.8424482]
[1761299719412,1.3288945,3958.2,3958.1,10.5040482]
[1761299720009,1.3288945,3958.2,3958.1,10.8424482]
[1761299720514,1.3288945,3958.2,3958.1,10.5020482]
[1761299720703,1.3288945,3958.2,3958.1,1.5790482]
[1761299720907,1.3288945,3958.2,3958.1,10.5020482]
[1761299721307,1.3288945,3958.2,3958.1,10.5010482]
[1761299722110,1.3288945,3958.2,3958.1,1.5790482]
[1761299722312,0.4307,3958.1,3957.9,0.45466]
[1761299722509,0.7732,3957.9,3957.8,0.48206649]
[1761299722812,0.8742745,3957.9,3957.8,0.48206649]
[1761299723010,0.8742745,3957.9,3957.8,0.70036649]
[1761299723624,1.3289345,3957.9,3957.8,0.24569649]
[1761299724411,1.3289345,3957.9,3957.8,0.70036649]
[1761299724713,1.3289345,3957.9,3957.8,0.02739649]
[1761299725016,1.3289345,3957.9,3957.8,0.48206649]
[1761299725811,1.3289345,3957.9,3957.8,0.02739649]
[1761299727220,1.22793,3957.3,3957.2,0.67304]
[1761299727405,1.3290045,3957.3,3957.2,0.2183]
[1761299727720,1.3290045,3957.3,3957.2,0.67304]
[1761299728218,1.3290045,3957.3,3957.2,0.67501926]
[1761299728415,1.3290045,3957.3,3957.2,0.00197926]
[1761299728621,1.3290045,3957.3,3957.2,0.22027926]
[1761299729011,1.3290045,3957.3,3957.2,0.00197926]
[1761299729612,0.4523,3956.7,3956.6,0.2131]
[1761299729818,0.90072373,3956.7,3956.6,0.88651]
[1761299730113,0.44842373,3956.7,3956.6,1.21531]
[1761299730707,0.45161687,3956.7,3956.6,1.218115]
[1761299731122,0.00319314,3956.7,3956.6,1.218115]
[1761299731525,0.34859314,3956.7,3956.6,10.145115]
[1761299732213,0.57269314,3956.7,3956.6,10.145115]
[1761299732413,0.57269314,3956.7,3956.6,1.218115]
[1761299732608,0.57269314,3956.7,3956.6,10.145115]
[1761299734826,0.34859314,3956.7,3956.6,10.145115]
[1761299735528,0.57269314,3956.7,3956.6,1.218115]
[1761299735717,1.25569314,3956.7,3956.6,1.218115]
[1761299735918,1.25569314,3956.7,3956.6,9.814315]
[1761299736927,1.25569314,3956.7,3956.6,9.359505]
[1761299737129,1.25569314,3956.7,3956.6,9.358505]
[1761299737314,1.25569314,3956.7,3956.6,0.002805]
[1761299737519,1.35847715,3956.7,3956.6,0.002805]
[1761299738629,1.35847715,3956.7,3956.6,0.215905]
[1761299738824,1.35847715,3956.7,3956.6,0.434505]
[1761299739027,1.35847715,3956.7,3956.6,1.218115]
[1761299739834,0.57269314,3956.7,3956.6,1.218115]
[1761299740127,0.34859314,3956.7,3956.6,1.218115]
[1761299741834,0.00319314,3956.7,3956.6,1.218115]
[1761299744027,0.3454,3957.6,3957.5,1.0021]
[1761299744227,0.3454,3957.6,3957.5,1.2152]
[1761299745128,0.00245954,3957.6,3957.5,1.3227]
[1761299745431,0.34785954,3957.6,3957.5,1.3227]
[1761299746134,0.00245954,3957.6,3957.5,1.3227]
[1761299747326,0.34785954,3957.6,3957.5,1.3227]
[1761299748430,0.34785954,3957.6,3957.5,1.2152]
[1761299748626,0.80254954,3957.6,3957.5,1.2152]
[1761299749132,0.57195954,3957.6,3957.5,1.2152]
[1761299749431,0.00245954,3957.6,3957.5,1.3227]
[1761299750428,0.00245954,3957.6,3957.5,4.5305]
[1761299751536,0.00245954,3957.6,3957.5,5.2115182]
[1761299752239,0.00245954,3957.6,3957.5,4.5305]
[1761299752537,0.00245954,3957.6,3957.5,5.21027635]
[1761299752834,0.00245954,3957.6,3957.5,2.00247635]
[1761299753037,0.00245954,3957.6,3957.5,2.00247441]
[1761299753236,0.34785954,3957.6,3957.5,2.00247441]
[1761299753738,0.34785954,3957.6,3957.5,1.89497441]
[1761299753937,0.34785954,3957.6,3957.5,10.81997441]
[1761299755342,0.00245954,3957.6,3957.5,10.81997441]
[1761299756041,0.34785954,3957.6,3957.5,10.81997441]
[1761299756343,0.00245954,3957.6,3957.5,10.92747441]
[1761299756643,0.00245954,3957.6,3957.5,2.00247441]
[1761299756831,0.00245954,3957.6,3957.5,10.92747441]
[1761299765557,0.34995954,3957.6,3957.5,10.92747441]
[1761299769261,0.34995954,3957.6,3957.5,10.2477]
[1761299769762,0.00245954,3957.6,3957.5,10.2477]
[1761299770161,0.00245954,3957.6,3957.5,11.15088575]
[1761299771360,0.34995954,3957.6,3957.5,11.04338575]
[1761299772953,0.57135954,3957.6,3957.5,11.03238575]
[1761299773257,0.57135954,3957.6,3957.5,10.1292]
[1761299773959,0.80395954,3957.6,3957.5,10.1292]
[1761299774361,0.80395954,3957.6,3957.5,11.03779452]
[1761299775760,0.80395954,3957.6,3957.5,2.12379452]
[1761299775955,0.9067684,3957.6,3957.5,11.03579452]
[1761299776261,0.9067684,3957.6,3957.5,10.1272]
[1761299777563,0.9067684,3957.6,3957.5,1.2278]
[1761299777754,0.9067684,3957.6,3957.5,10.1398]
[1761299778559,1.3614584,3957.6,3957.5,9.7984]
[1761299778760,1.3614584,3957.6,3957.5,10.27305761]
[1761299778960,1.3614584,3957.6,3957.5,10.82875761]
[1761299779564,1.3614584,3957.6,3957.5,1.57535761]
[1761299779763,1.3614584,3957.6,3957.5,10.48735761]
[1761299779962,1.3614584,3957.6,3957.5,10.82875761]
[1761299780559,1.3614584,3957.6,3957.5,1.91675761]
[1761299780766,1.3614584,3957.6,3957.5,10.82875761]
[1761299781967,1.3614584,3957.6,3957.5,10.48735761]
[1761299782458,1.3614584,3957.6,3957.5,10.03265761]
[1761299782659,1.3614584,3957.6,3957.5,10.82875761]
[1761299783165,1.3614584,3957.6,3957.5,10.147]
[1761299783963,1.3614584,3957.6,3957.5,1.235]
[1761299784266,1.3614584,3957.6,3957.5,10.147]
[1761299785062,1.3614584,3957.6,3957.5,1.235]
[1761299785263,1.3614584,3957.6,3957.5,10.147]
[1761299786869,1.3614584,3957.6,3957.5,1.235]
[1761299787070,1.3614584,3957.6,3957.5,10.147]
[1761299791576,1.3614584,3957.6,3957.5,1.235]
[1761299791776,1.3614584,3957.6,3957.5,10.147]
[1761299792167,1.3614584,3957.6,3957.5,1.235]
[1761299792367,1.3614584,3957.6,3957.5,10.147]
[1761299795079,1.3614584,3957.6,3957.5,10.82875761]
[1761299795777,0.5599584,3957.6,3957.5,10.82875761]
[1761299796180,1.1164584,3957.6,3957.5,10.82875761]
[1761299797085,0.8992584,3957.6,3957.5,10.82875761]
[1761299797984,1.1164584,3957.6,3957.5,10.82875761]
[1761299800187,1.1164584,3957.6,3957.5,10.147]
[1761299804280,1.1164584,3957.6,3957.5,10.146]
[1761299807594,1.11378986,3957.6,3957.5,10.146]
[1761299808089,1.11378986,3957.6,3957.5,11.0548279]
[1761299809896,1.11378986,3957.6,3957.5,2.1438279]
[1761299810189,1.11378986,3957.6,3957.5,10.146]
[1761299811088,1.11378986,3957.6,3957.5,1.235]
[1761299811290,1.11378986,3957.6,3957.5,10.146]
[1761299812195,1.11378986,3957.6,3957.5,1.235]
[1761299812394,1.11378986,3957.6,3957.5,10.146]
[1761299813297,1.11378986,3957.6,3957.5,9.6913]
[1761299813491,1.3652,3957.5,3957.4,0.9088279]
[1761299813691,1.3652,3957.5,3956.8,8.9887]
[1761299813692,0.45477,3956.9,3956.8,8.9887]
[1761299813890,1.32891032,3956.9,3956.8,9.5568]
[1761299814100,1.32891032,3956.9,3956.8,0.7828]
[1761299814393,0.10014032,3956.9,3956.8,1.23758]
[1761299814594,0.4758,3957.5,3957.4,0.7828]
[1761299814899,0.79306271,3957.5,3957.4,0.7828]
[1761299815695,0.65656271,3957.5,3957.4,0.7828]
[1761299816999,1.11126271,3957.5,3957.4,0.7828]
[1761299817300,1.46526271,3957.5,3957.4,0.7828]
[1761299818396,1.46526271,3957.5,3957.4,0.4473]
[1761299820202,1.46526271,3957.5,3957.4,0.2147]
[1761299821295,1.46526271,3957.5,3957.4,0.4409]
[1761299821698,1.46522081,3957.5,3957.4,0.4409]
[1761299822705,1.46522081,3957.5,3957.4,0.2147]
[1761299824600,1.01052081,3957.5,3957.4,0.2147]
[1761299824799,1.01052081,3957.5,3957.4,1.21442]
[1761299824990,0.65652081,3957.5,3957.4,0.7597]
[1761299825396,1.11122081,3957.5,3957.4,0.7597]
[1761299825704,1.24182081,3957.5,3957.4,0.7597]
[1761299826006,1.45742081,3957.5,3957.4,0.7597]
[1761299826306,1.45742081,3957.5,3957.4,0.4409]
[1761299826509,1.45742081,3957.5,3957.4,0.7597]
[1761299826896,1.45742081,3957.5,3957.4,0.4409]
[1761299827207,1.45740576,3957.5,3957.4,0.4409]
[1761299830208,0.3349,3957.2,3957.1,0.45475]
[1761299830409,0.86200576,3957.2,3957.1,1.23255]
[1761299831505,0.64640576,3957.2,3957.1,1.23255]
[1761299833510,0.43490576,3957.2,3957.1,1.23255]
[1761299834913,0.64640576,3957.2,3957.1,1.23255]
[1761299835315,0.43490576,3957.2,3957.1,1.23255]
[1761299835915,0.10000576,3957.2,3957.1,1.23255]
[1761299836116,0.3349,3957.4,3957.3,0.3188]
[1761299836304,0.00245954,3957.6,3957.5,0.4547]
[1761299836511,0.00245954,3957.6,3957.5,1.2325]
[1761299836817,0.43772961,3957.6,3957.5,1.2325]
[1761299837814,0.86482961,3957.6,3957.5,0.6875]
[1761299838022,0.86482961,3957.6,3957.5,1.2325]
[1761299838213,0.64922961,3957.6,3957.5,1.2325]
[1761299840522,0.86482961,3957.6,3957.5,1.2325]
[1761299841125,0.10282961,3957.6,3957.5,1.2325]
[1761299841325,0.43772961,3957.6,3957.5,1.2325]
[1761299841521,0.33735954,3957.6,3957.5,1.2325]
[1761299842426,0.00245954,3957.6,3957.5,1.2325]
[1761299843219,0.00245954,3957.6,3957.5,1.3399]
[1761299843524,0.33735954,3957.6,3957.5,1.3399]
[1761299844115,0.33735954,3957.6,3957.5,1.2325]
[1761299844818,0.54885954,3957.6,3957.5,1.2325]
[1761299845024,0.54885954,3957.6,3957.5,10.1425]
[1761299846522,0.33735954,3957.6,3957.5,10.1425]
[1761299850024,0.00245954,3957.6,3957.5,10.1425]
[1761299850230,0.00245954,3957.6,3957.5,10.2499]
[1761299850429,0.00245954,3957.6,3957.5,10.2489]
[1761299851727,0.3341,3958.2,3958.1,0.45464]
[1761299851922,0.4344576,3958.2,3958.1,10.13694]
[1761299852326,0.3341,3958.2,3958.1,10.13694]
[1761299852833,0.33698967,3958.2,3958.1,10.13694]
[1761299854122,0.00288967,3958.2,3958.1,10.13694]
[1761299854331,0.34948967,3958.2,3958.1,10.13694]
[1761299854630,0.34948967,3958.2,3958.1,10.13594]
[1761299860530,0.34948967,3958.2,3958.1,1.22794]
[1761299860719,0.34948967,3958.2,3958.1,10.13494]
[1761299861633,0.56778967,3958.2,3958.1,10.13494]
[1761299862128,0.00288967,3958.2,3958.1,10.13494]
[1761299866935,0.00288967,3958.2,3958.1,1.22794]
[1761299867131,0.00288967,3958.2,3958.1,10.13494]
[1761299872148,0.00288967,3958.2,3958.1,1.22794]
[1761299872346,0.00288967,3958.2,3958.1,10.13394]
[1761299876149,0.00288967,3958.2,3958.1,11.04145895]
[1761299877745,0.00288967,3958.2,3958.1,1.22794]
[1761299877950,0.00288967,3958.2,3958.1,10.13294]
[1761299879049,0.00288967,3958.2,3958.1,1.22794]
[1761299879252,0.58058967,3958.2,3958.1,10.13294]
[1761299879754,0.34948967,3958.2,3958.1,10.13294]
[1761299880053,0.00288967,3958.2,3958.1,10.13294]
[1761299880352,0.00288967,3958.2,3958.1,11.04045895]
[1761299880552,0.10207362,3958.2,3958.1,11.04045895]
[1761299883061,0.00288967,3958.2,3958.1,11.04045895]
[1761299883951,0.10208261,3958.2,3958.1,11.04045895]
[1761299884355,3.2078,3958.8,3958.7,0.45458]
[1761299884549,0.7719,3959.1,3959.0,1.23234]
[1761299884749,0.8711157,3959.1,3959.0,9.79724]
[1761299885257,0.8711157,3959.1,3959.0,10.13634]
[1761299885557,0.87419074,3959.1,3959.0,10.13634]
[1761299894357,0.87419074,3959.1,3958.6,1.81811907]
[1761299894358,0.55529074,3959.1,3958.6,0.90015907]
[1761299894664,0.7719,3958.8,3958.7,10.13538]
[1761299894866,1.3256757,3958.8,3958.7,10.13538]
[1761299895157,0.6492157,3958.8,3958.7,10.13538]
[1761299896160,1.3256757,3958.8,3958.7,10.13538]
[1761299896362,1.3256757,3958.8,3958.7,0.89328]
[1761299896562,1.3256757,3958.8,3958.7,9.79628]
[1761299897260,1.3256757,3958.8,3958.7,10.13538]
[1761299898863,1.3256757,3958.8,3958.7,1.23238]
[1761299899067,1.3256757,3958.8,3958.7,10.13538]
[1761299899970,1.3256757,3958.8,3958.7,1.23238]
[1761299900171,1.3256757,3958.8,3958.7,10.13438]
[1761299900866,1.3256757,3958.8,3958.7,0.89328]
[1761299901070,1.3256757,3958.8,3958.7,9.79528]
[1761299901671,1.3256757,3958.8,3958.7,10.13438]
[1761299904369,1.3256757,3958.8,3958.7,0.89328]
[1761299905871,1.3256757,3958.8,3958.7,1.23238]
[1761299907464,0.8711157,3958.8,3958.7,1.23238]
[1761299907671,0.0992157,3958.8,3958.7,1.23238]
[1761299907866,0.41911757,3958.9,3958.8,1.23236]
[1761299908072,1.10476756,3958.9,3958.8,1.23236]
[1761299908270,2.23247578,3958.9,3958.8,1.23236]
[1761299910173,1.77792578,3958.9,3958.8,1.23236]
[1761299910567,0.87211756,3958.9,3958.8,1.23236]
[1761299910770,0.10021756,3958.9,3958.8,1.23236]
[1761299911277,0.41671756,3958.9,3958.8,1.23236]
[1761299912277,1.76532578,3958.9,3958.8,9.79526]
[1761299912480,2.21987578,3958.9,3958.8,9.3397]
[1761299912977,2.21987578,3958.9,3958.8,9.79426]
[1761299913576,1.76532578,3958.9,3958.8,10.13576]
[1761299914077,0.85951756,3958.9,3958.8,10.13576]
[1761299914274,0.41671756,3958.9,3958.8,10.13576]
[1761299916380,0.41671756,3958.9,3958.8,1.23476]
[1761299916581,0.41671756,3958.9,3958.8,10.13576]
[1761299918685,0.10021756,3958.9,3958.8,10.81741907]
[1761299919774,0.90580822,3959.3,3959.2,1.24422]
[1761299919976,0.90580822,3959.7,3959.6,1.02117]
[1761299920176,3.2078,3959.8,3959.7,1.24416]
[1761299920376,3.2078,3959.8,3959.7,10.14516]
[1761299920786,3.20969406,3959.8,3959.7,10.14790096]
[1761299922782,3.77449406,3959.8,3959.7,10.14690096]
[1761299923286,3.77449406,3959.8,3959.7,1.24690096]
[1761299923486,3.77449406,3959.8,3959.7,10.14690096]
[1761299924487,0.56669406,3959.8,3959.7,10.14690096]
[1761299925382,0.35279406,3959.8,3959.7,10.14690096]
[1761299926687,0.56669406,3959.8,3959.7,10.14690096]
[1761299927289,0.35279406,3959.8,3959.7,10.14690096]
[1761299931182,0.80724406,3959.8,3959.7,10.14690096]
[1761299931692,0.90778889,3959.8,3959.7,10.14690096]
[1761299932191,0.90778889,3959.8,3959.7,1.24690096]
[1761299932392,0.90778889,3959.8,3959.7,10.14590096]
[1761299934993,0.45333889,3959.8,3959.7,10.14590096]
[1761299937993,0.45333889,3959.8,3959.7,10.14490096]
[1761299938696,0.10243889,3959.8,3959.7,10.14490096]
[1761299948507,0.42033889,3959.8,3959.7,10.14490096]
[1761299949101,0.42033889,3959.8,3959.7,10.14390096]
[1761299950111,0.10243889,3959.8,3959.7,10.14390096]
[1761299951110,0.64083889,3959.8,3959.7,10.12770096]
[1761299951408,0.10243889,3959.8,3959.7,10.12770096]
[1761299953209,0.00189406,3959.8,3959.7,10.12770096]
[1761299953412,0.10323017,3959.8,3959.7,10.80936694]
[1761299954110,1.00903839,3959.8,3959.7,10.12770096]
[1761299954506,0.10323017,3959.8,3959.7,10.12770096]
[1761299956924,0.00189406,3959.8,3959.7,10.12770096]
[1761299958314,0.00189406,3959.8,3959.7,10.80936694]
[1761299959326,0.00189406,3959.8,3959.7,10.12770096]
[1761299964328,0.00189406,3959.8,3959.7,11.03526794]
[1761299965023,0.00189406,3959.8,3959.7,14.24306794]
[1761299972330,0.00189406,3959.8,3959.7,13.33550096]
[1761299977231,0.34019406,3959.8,3959.7,4.43850096]
[1761299977426,0.56499406,3959.8,3959.7,13.33250096]
[1761299978332,0.77739406,3959.8,3959.7,4.43850096]
[1761299978531,0.77739406,3959.8,3959.7,14.2382966]
[1761299979332,0.77739406,3959.8,3959.7,13.00720096]
[1761299979531,0.77739406,3959.8,3959.7,13.9152025]
[1761299980434,0.77739406,3959.8,3959.7,10.7074025]
[1761299982139,0.87866478,3959.8,3959.7,11.0306025]
[1761299983237,0.87866478,3959.8,3959.7,11.0296025]
[1761299983437,0.44146478,3959.8,3959.7,10.12160096]
[1761299983741,0.34019406,3959.8,3959.7,10.12160096]
[1761299983928,0.44130874,3959.8,3959.7,10.12160096]
[1761299984533,0.87850874,3959.8,3959.7,1.22860096]
[1761299984739,0.87850874,3959.8,3959.7,10.12160096]
[1761299984925,0.44130874,3959.8,3959.7,10.12160096]
[1761299985129,0.00189406,3959.8,3959.7,11.4849191]
[1761299985840,0.3383,3960.4,3960.3,1.21269]
[1761299986041,0.3383,3960.4,3960.3,10.78727037]
[1761299986839,0.34072479,3960.4,3960.3,10.78727037]